[Event "*** Titled Tuesday Blitz"]
[Site "Chess.com"]
[Date "2020.05.12"]
[Round "7"]
[White "fridaywins"]
[Black "ristingho"]
[Result "0-1"]
[WhiteElo "2252"]
[BlackElo "2520"]
[TimeControl "180+1"]
[EndTime "11:16:08 PDT"]
[Termination "ristingho won by resignation"]

1. e4 {[%clk 0:03:00.9]} 1... c6 {[%clk 0:02:57.5]} 2. Nc3 {[%clk 0:03:00]} 2...
d5 {[%clk 0:02:55.3]} 3. Nf3 {[%clk 0:02:59.8]} 3... Nf6 {[%clk 0:02:51.8]} 4.
d3 {[%clk 0:02:55.3]} 4... Bg4 {[%clk 0:02:49.3]} 5. h3 {[%clk 0:02:54.7]} 5...
Bh5 {[%clk 0:02:46.4]} 6. g4 {[%clk 0:02:51.7]} 6... Bg6 {[%clk 0:02:45.7]} 7.
Qe2 {[%clk 0:02:38.8]} 7... e6 {[%clk 0:02:38.4]} 8. Ne5 {[%clk 0:02:26.1]} 8...
Nbd7 {[%clk 0:02:34.9]} 9. Nxg6 {[%clk 0:02:23.6]} 9... hxg6 {[%clk 0:02:34.5]}
10. e5 {[%clk 0:02:22.8]} 10... Ng8 {[%clk 0:02:32]} 11. d4 {[%clk 0:02:22.6]}
11... c5 {[%clk 0:02:30.9]} 12. Be3 {[%clk 0:02:14.2]} 12... Ne7 {[%clk
0:02:28.1]} 13. f4 {[%clk 0:01:46]} 13... Nc6 {[%clk 0:02:21.8]} 14. O-O-O
{[%clk 0:01:34.7]} 14... cxd4 {[%clk 0:02:11]} 15. Bxd4 {[%clk 0:01:33.5]} 15...
Nxd4 {[%clk 0:02:11.4]} 16. Rxd4 {[%clk 0:01:33]} 16... Bc5 {[%clk 0:02:11.2]}
17. Rd3 {[%clk 0:01:32.8]} 17... Qa5 {[%clk 0:02:10.9]} 18. Kb1 {[%clk
0:01:26.8]} 18... O-O-O {[%clk 0:02:09.9]} 19. Bg2 {[%clk 0:01:20.5]} 19... Kb8
{[%clk 0:02:09.2]} 20. f5 {[%clk 0:01:16.1]} 20... Nb6 {[%clk 0:02:00.1]} 21.
fxg6 {[%clk 0:01:09.6]} 21... fxg6 {[%clk 0:01:59.8]} 22. Rf3 {[%clk 0:00:57.9]}
22... Nc4 {[%clk 0:01:57.4]} 23. Ka1 {[%clk 0:00:17.5]} 23... Qc7 {[%clk
0:01:35.3]} 24. Rd1 {[%clk 0:00:14.8]} 24... Nxe5 {[%clk 0:01:31.8]} 25. Rff1
{[%clk 0:00:12.4]} 25... Nc4 {[%clk 0:01:31.4]} 26. Qxe6 {[%clk 0:00:11.7]}
26... Rhe8 {[%clk 0:01:21.3]} 27. Qxg6 {[%clk 0:00:11]} 27... Ne3 {[%clk
0:01:19.2]} 28. Nxd5 {[%clk 0:00:09.3]} 28... Rxd5 {[%clk 0:00:58.2]} 29. Bxd5
{[%clk 0:00:08]} 29... Nxf1 {[%clk 0:00:57.2]} 30. Rxf1 {[%clk 0:00:07.5]} 30...
Qe5 {[%clk 0:00:57.7]} 31. c4 {[%clk 0:00:06.2]} 31... Bd4 {[%clk 0:00:54.5]}
32. Qc2 {[%clk 0:00:05.7]} 32... Rc8 {[%clk 0:00:40.6]} 33. a4 {[%clk 0:00:05]}
33... Qxd5 {[%clk 0:00:40.7]} 34. cxd5 {[%clk 0:00:03.9]} 34... Rxc2 {[%clk
0:00:40.7]} 35. Rf8+ {[%clk 0:00:04.7]} 35... Kc7 {[%clk 0:00:40.1]} 36. Rf7+
{[%clk 0:00:04.1]} 0-1

[Event "*** Titled Tuesday Blitz"]
[Site "Chess.com"]
[Date "2020.05.12"]
[Round "7"]
[White "AthanasiusLefebvre"]
[Black "ChristianAlm"]
[Result "0-1"]
[WhiteElo "2034"]
[BlackElo "2424"]
[TimeControl "180+1"]
[EndTime "11:16:09 PDT"]
[Termination "ChristianAlm won by resignation"]

1. Nf3 {[%clk 0:03:00.9]} 1... Nf6 {[%clk 0:02:59.5]} 2. g3 {[%clk 0:03:00.3]}
2... g6 {[%clk 0:02:59.5]} 3. Bg2 {[%clk 0:02:59.2]} 3... Bg7 {[%clk 0:02:59.7]}
4. O-O {[%clk 0:02:59.3]} 4... O-O {[%clk 0:03:00.6]} 5. d3 {[%clk 0:02:59.3]}
5... d5 {[%clk 0:03:00.6]} 6. c4 {[%clk 0:02:58.5]} 6... c5 {[%clk 0:02:57.6]}
7. Nc3 {[%clk 0:02:58.3]} 7... Nc6 {[%clk 0:02:57]} 8. a3 {[%clk 0:02:54.4]}
8... dxc4 {[%clk 0:02:53.9]} 9. dxc4 {[%clk 0:02:53.8]} 9... Be6 {[%clk
0:02:54.4]} 10. Be3 {[%clk 0:02:51.6]} 10... Bxc4 {[%clk 0:02:43.3]} 11. Bxc5
{[%clk 0:02:50.9]} 11... Qc7 {[%clk 0:02:32.9]} 12. Qc2 {[%clk 0:02:28.1]} 12...
Rac8 {[%clk 0:02:26.9]} 13. Rfd1 {[%clk 0:02:08.6]} 13... a6 {[%clk 0:02:21.6]}
14. Rac1 {[%clk 0:02:06.5]} 14... Be6 {[%clk 0:02:17.1]} 15. Be3 {[%clk
0:01:54.3]} 15... Na5 {[%clk 0:02:03.4]} 16. Bf4 {[%clk 0:01:47.6]} 16... Qb6
{[%clk 0:01:50.1]} 17. b4 {[%clk 0:01:15.8]} 17... Nc4 {[%clk 0:01:36.6]} 18.
Na4 {[%clk 0:00:22.2]} 18... Qa7 {[%clk 0:01:15.4]} 19. Nc5 {[%clk 0:00:19.4]}
19... Nxa3 {[%clk 0:01:07.7]} 20. Qd3 {[%clk 0:00:18.6]} 20... Nb5 {[%clk
0:00:54.9]} 21. Nxe6 {[%clk 0:00:17.7]} 21... fxe6 {[%clk 0:00:55.8]} 22. Qb3
{[%clk 0:00:17.4]} 22... Nd5 {[%clk 0:00:32.1]} 23. Be5 {[%clk 0:00:11.1]} 23...
Rxc1 {[%clk 0:00:26.8]} 24. Rxc1 {[%clk 0:00:10.2]} 24... Bxe5 {[%clk
0:00:26.3]} 25. Nxe5 {[%clk 0:00:09.9]} 25... Qxf2+ {[%clk 0:00:25.3]} 26. Kh1
{[%clk 0:00:10.4]} 26... Qxe2 {[%clk 0:00:19.8]} 27. Bxd5 {[%clk 0:00:10.2]}
27... Rf1+ {[%clk 0:00:17.8]} 0-1

[Event "*** Titled Tuesday Blitz"]
[Site "Chess.com"]
[Date "2020.05.12"]
[Round "7"]
[White "UmutErdemGunduz"]
[Black "Juanovic"]
[Result "1-0"]
[WhiteElo "2396"]
[BlackElo "2184"]
[TimeControl "180+1"]
[EndTime "11:16:10 PDT"]
[Termination "UmutErdemGunduz won by resignation"]

1. e4 {[%clk 0:03:00.9]} 1... c5 {[%clk 0:02:59.2]} 2. Nf3 {[%clk 0:03:00.5]}
2... Nc6 {[%clk 0:02:58.7]} 3. d4 {[%clk 0:03:01.1]} 3... cxd4 {[%clk 0:02:59]}
4. Nxd4 {[%clk 0:03:02]} 4... g6 {[%clk 0:02:59.3]} 5. Nc3 {[%clk 0:03:01.9]}
5... Bg7 {[%clk 0:02:59.8]} 6. Be3 {[%clk 0:03:01.9]} 6... Nf6 {[%clk
0:03:00.2]} 7. Bc4 {[%clk 0:02:59.3]} 7... O-O {[%clk 0:03:00.3]} 8. Bb3 {[%clk
0:02:59.4]} 8... d6 {[%clk 0:03:00.4]} 9. f3 {[%clk 0:02:56.8]} 9... Nd7 {[%clk
0:03:00.4]} 10. Qd2 {[%clk 0:02:48.8]} 10... Nb6 {[%clk 0:03:00.4]} 11. h4
{[%clk 0:02:45.2]} 11... Na5 {[%clk 0:03:00.5]} 12. Qe2 {[%clk 0:02:42.9]} 12...
d5 {[%clk 0:02:55.1]} 13. Rd1 {[%clk 0:02:33.8]} 13... Nxb3 {[%clk 0:02:54.8]}
14. axb3 {[%clk 0:02:32.6]} 14... e5 {[%clk 0:02:52.5]} 15. Ndb5 {[%clk
0:02:17]} 15... d4 {[%clk 0:02:52.4]} 16. Bf2 {[%clk 0:02:15.5]} 16... a6 {[%clk
0:02:51.8]} 17. Na3 {[%clk 0:02:15]} 17... Be6 {[%clk 0:02:39.5]} 18. h5 {[%clk
0:02:08.6]} 18... Qe7 {[%clk 0:02:26.1]} 19. h6 {[%clk 0:02:00.1]} 19... Bh8
{[%clk 0:02:24.5]} 20. Na4 {[%clk 0:01:45.4]} 20... Nxa4 {[%clk 0:02:19.4]} 21.
bxa4 {[%clk 0:01:46.3]} 21... Rac8 {[%clk 0:02:15]} 22. O-O {[%clk 0:01:40.5]}
22... Qb4 {[%clk 0:02:14.5]} 23. Rd3 {[%clk 0:01:11.2]} 23... Qxa4 {[%clk
0:02:02.6]} 24. f4 {[%clk 0:01:08.5]} 24... f5 {[%clk 0:01:53.8]} 25. fxe5
{[%clk 0:00:42.5]} 25... fxe4 {[%clk 0:01:50.1]} 26. Rxd4 {[%clk 0:00:41.8]}
26... Qc6 {[%clk 0:01:25]} 27. Rd6 {[%clk 0:00:36.5]} 27... Qe8 {[%clk
0:01:22.1]} 28. Bd4 {[%clk 0:00:26.5]} 28... Rxf1+ {[%clk 0:01:18.5]} 29. Qxf1
{[%clk 0:00:27.4]} 29... b5 {[%clk 0:01:02]} 30. c3 {[%clk 0:00:22.5]} 30... Qe7
{[%clk 0:01:01.5]} 31. Nc2 {[%clk 0:00:18.4]} 31... Rf8 {[%clk 0:01:01.2]} 32.
Qe2 {[%clk 0:00:17.7]} 32... Bc4 {[%clk 0:00:54.2]} 33. Qxe4 {[%clk 0:00:16.9]}
33... Qg5 {[%clk 0:00:40.3]} 34. Ne3 {[%clk 0:00:13.1]} 34... Be2 {[%clk
0:00:32.3]} 35. Qd5+ {[%clk 0:00:11.3]} 1-0

[Event "*** Titled Tuesday Blitz"]
[Site "Chess.com"]
[Date "2020.05.12"]
[Round "7"]
[White "rpragchess"]
[Black "awesomevishesh"]
[Result "1-0"]
[WhiteElo "2869"]
[BlackElo "2439"]
[TimeControl "180+1"]
[EndTime "11:16:11 PDT"]
[Termination "rpragchess won on time"]

1. Nf3 {[%clk 0:03:00.9]} 1... Nf6 {[%clk 0:02:58.8]} 2. g3 {[%clk 0:02:58.3]}
2... g6 {[%clk 0:02:58.7]} 3. b3 {[%clk 0:02:57.3]} 3... Bg7 {[%clk 0:02:58.9]}
4. Bb2 {[%clk 0:02:58.2]} 4... d6 {[%clk 0:02:57.7]} 5. d4 {[%clk 0:02:58]} 5...
O-O {[%clk 0:02:57]} 6. Bg2 {[%clk 0:02:58.2]} 6... Nbd7 {[%clk 0:02:55.2]} 7.
O-O {[%clk 0:02:58.2]} 7... Re8 {[%clk 0:02:55.5]} 8. c4 {[%clk 0:02:55.8]} 8...
c6 {[%clk 0:02:55.2]} 9. Nc3 {[%clk 0:02:55.1]} 9... e5 {[%clk 0:02:52.9]} 10.
e4 {[%clk 0:02:50]} 10... exd4 {[%clk 0:02:44.4]} 11. Nxd4 {[%clk 0:02:50.9]}
11... Nc5 {[%clk 0:02:44.5]} 12. Qc2 {[%clk 0:02:50.8]} 12... Qb6 {[%clk
0:02:37.6]} 13. Rad1 {[%clk 0:02:34.2]} 13... a5 {[%clk 0:02:30.1]} 14. a4
{[%clk 0:01:51.3]} 14... Ng4 {[%clk 0:02:27]} 15. h3 {[%clk 0:01:45.9]} 15...
Ne5 {[%clk 0:02:23.6]} 16. Nce2 {[%clk 0:01:41.5]} 16... Na6 {[%clk 0:02:02.1]}
17. Kh2 {[%clk 0:01:35.6]} 17... Nb4 {[%clk 0:02:01.1]} 18. Qb1 {[%clk 0:01:35]}
18... Nd7 {[%clk 0:01:55.8]} 19. Ba1 {[%clk 0:01:03.7]} 19... Nc5 {[%clk
0:01:54.8]} 20. Rfe1 {[%clk 0:01:02.6]} 20... Bd7 {[%clk 0:01:45.7]} 21. Nf4
{[%clk 0:00:57.2]} 21... Rad8 {[%clk 0:01:36.2]} 22. h4 {[%clk 0:00:54.9]} 22...
h5 {[%clk 0:01:29.8]} 23. Nf3 {[%clk 0:00:50.2]} 23... Bxa1 {[%clk 0:01:18.5]}
24. Qxa1 {[%clk 0:00:50.1]} 24... Nc2 {[%clk 0:00:42.2]} 25. Qf6 {[%clk
0:00:43.8]} 25... Nxe1 {[%clk 0:00:28.5]} 26. Ng5 {[%clk 0:00:32.7]} 26... Be6
{[%clk 0:00:04.5]} 27. Nxg6 {[%clk 0:00:30.3]} 27... fxg6 {[%clk 0:00:03.2]} 28.
Qxg6+ {[%clk 0:00:30.6]} 28... Kf8 {[%clk 0:00:03.4]} 29. Qh6+ {[%clk 0:00:31]}
29... Ke7 {[%clk 0:00:02.7]} 30. Qg7+ {[%clk 0:00:31.2]} 1-0

[Event "*** Titled Tuesday Blitz"]
[Site "Chess.com"]
[Date "2020.05.12"]
[Round "7"]
[White "PawnEatingZombie"]
[Black "Tsyhanchuk_Stanislav"]
[Result "0-1"]
[WhiteElo "2166"]
[BlackElo "2518"]
[TimeControl "180+1"]
[EndTime "11:16:11 PDT"]
[Termination "Tsyhanchuk_Stanislav won on time"]

1. d4 {[%clk 0:03:00.9]} 1... d5 {[%clk 0:02:59.7]} 2. c4 {[%clk 0:03:00.6]}
2... c6 {[%clk 0:02:59.6]} 3. Nc3 {[%clk 0:03:00.7]} 3... Nf6 {[%clk 0:02:59.1]}
4. e3 {[%clk 0:03:01.2]} 4... e6 {[%clk 0:02:58.7]} 5. Nf3 {[%clk 0:03:01.1]}
5... Nbd7 {[%clk 0:02:58.4]} 6. Qc2 {[%clk 0:03:01.5]} 6... b6 {[%clk
0:02:57.6]} 7. Bd3 {[%clk 0:02:59.4]} 7... Bb7 {[%clk 0:02:56.9]} 8. O-O {[%clk
0:02:59.2]} 8... Be7 {[%clk 0:02:56.3]} 9. b3 {[%clk 0:02:59.5]} 9... O-O {[%clk
0:02:55.9]} 10. Bb2 {[%clk 0:02:59.6]} 10... h6 {[%clk 0:02:56]} 11. Rad1 {[%clk
0:02:57.1]} 11... Rc8 {[%clk 0:02:56.1]} 12. Qe2 {[%clk 0:02:56.5]} 12... Qc7
{[%clk 0:02:52.2]} 13. Rfe1 {[%clk 0:02:53.3]} 13... Rfe8 {[%clk 0:02:50.9]} 14.
e4 {[%clk 0:02:53]} 14... dxe4 {[%clk 0:02:46.5]} 15. Nxe4 {[%clk 0:02:53.9]}
15... Nxe4 {[%clk 0:02:41.3]} 16. Bxe4 {[%clk 0:02:51.1]} 16... Nf6 {[%clk
0:02:41.2]} 17. Bb1 {[%clk 0:02:49.9]} 17... c5 {[%clk 0:02:36.9]} 18. Qd3
{[%clk 0:02:14.9]} 18... Rcd8 {[%clk 0:02:04.8]} 19. d5 {[%clk 0:00:59.4]} 19...
g6 {[%clk 0:01:47.8]} 20. Rxe6 {[%clk 0:00:53.7]} 20... Bxd5 {[%clk 0:00:48.3]}
21. cxd5 {[%clk 0:00:21.3]} 21... Rxd5 {[%clk 0:00:49.2]} 22. Qc2 {[%clk
0:00:03.6]} 22... Rxd1+ {[%clk 0:00:48.4]} 23. Qxd1 {[%clk 0:00:04.3]} 23...
fxe6 {[%clk 0:00:45.6]} 24. Qc2 {[%clk 0:00:04.9]} 24... Qf4 {[%clk 0:00:14.4]}
25. Qxg6+ {[%clk 0:00:04.2]} 25... Kf8 {[%clk 0:00:14.3]} 0-1

[Event "*** Titled Tuesday Blitz"]
[Site "Chess.com"]
[Date "2020.05.12"]
[Round "7"]
[White "Rodalquilar"]
[Black "sergiochess83"]
[Result "0-1"]
[WhiteElo "2615"]
[BlackElo "2818"]
[TimeControl "180+1"]
[EndTime "11:16:12 PDT"]
[Termination "sergiochess83 won on time"]

1. d4 {[%clk 0:03:00.9]} 1... Nf6 {[%clk 0:02:59.6]} 2. Bg5 {[%clk 0:03:00.9]}
2... d5 {[%clk 0:02:59]} 3. e3 {[%clk 0:03:00.3]} 3... c5 {[%clk 0:02:55.8]} 4.
c3 {[%clk 0:02:50.8]} 4... Qb6 {[%clk 0:02:49.4]} 5. Qc2 {[%clk 0:02:44.8]} 5...
cxd4 {[%clk 0:02:42.4]} 6. exd4 {[%clk 0:02:44.7]} 6... Nc6 {[%clk 0:02:36.7]}
7. Nf3 {[%clk 0:02:41.7]} 7... Ne4 {[%clk 0:02:29.2]} 8. Bf4 {[%clk 0:02:38.2]}
8... Bf5 {[%clk 0:02:29.2]} 9. Bd3 {[%clk 0:02:34.1]} 9... Rc8 {[%clk
0:02:28.2]} 10. O-O {[%clk 0:02:23.9]} 10... e6 {[%clk 0:02:27.5]} 11. Nbd2
{[%clk 0:01:28.4]} 11... Nxd2 {[%clk 0:02:21.4]} 12. Bxd2 {[%clk 0:01:21.2]}
12... Bxd3 {[%clk 0:02:10.2]} 13. Qxd3 {[%clk 0:01:22.1]} 13... Be7 {[%clk
0:02:10.5]} 14. b4 {[%clk 0:01:20.9]} 14... O-O {[%clk 0:02:09.5]} 15. a4 {[%clk
0:01:20.5]} 15... a5 {[%clk 0:02:05]} 16. b5 {[%clk 0:01:20.4]} 16... Nb8 {[%clk
0:02:05.3]} 17. Bg5 {[%clk 0:01:14.1]} 17... Bd6 {[%clk 0:01:55.7]} 18. Rfe1
{[%clk 0:01:10.4]} 18... Nd7 {[%clk 0:01:55.2]} 19. h4 {[%clk 0:01:06.2]} 19...
Qc7 {[%clk 0:01:42.4]} 20. Bd2 {[%clk 0:01:03.3]} 20... Bf4 {[%clk 0:01:36.2]}
21. Ng5 {[%clk 0:00:53]} 21... Nf6 {[%clk 0:01:32]} 22. Bxf4 {[%clk 0:00:29.1]}
22... Qxf4 {[%clk 0:01:31.8]} 23. Re5 {[%clk 0:00:19.8]} 23... h6 {[%clk
0:01:21.8]} 24. Nf3 {[%clk 0:00:11.2]} 24... Ne4 {[%clk 0:01:14.9]} 25. g3
{[%clk 0:00:09.8]} 25... Qg4 {[%clk 0:01:15.2]} 26. Nh2 {[%clk 0:00:07.8]} 26...
Qh3 {[%clk 0:01:15.5]} 27. c4 {[%clk 0:00:06.1]} 27... Nxf2 {[%clk 0:01:10.9]}
28. Qf3 {[%clk 0:00:06.3]} 28... Ne4 {[%clk 0:01:06.5]} 29. c5 {[%clk
0:00:05.7]} 29... f6 {[%clk 0:01:03.7]} 30. Rxe4 {[%clk 0:00:05.3]} 30... dxe4
{[%clk 0:01:02.9]} 31. Qg4 {[%clk 0:00:04.1]} 31... Qxg4 {[%clk 0:01:02]} 32.
Nxg4 {[%clk 0:00:05]} 32... Rfd8 {[%clk 0:01:02.2]} 33. Rc1 {[%clk 0:00:03.3]}
33... Rxd4 {[%clk 0:01:01.9]} 34. Kf2 {[%clk 0:00:04]} 34... Rxa4 {[%clk
0:01:00.3]} 35. Ne3 {[%clk 0:00:04.3]} 35... Rb4 {[%clk 0:00:58.3]} 36. c6
{[%clk 0:00:03.3]} 36... Rxb5 {[%clk 0:00:55.1]} 37. c7 {[%clk 0:00:03.8]} 37...
Kf8 {[%clk 0:00:53.2]} 38. Rc4 {[%clk 0:00:03.3]} 38... f5 {[%clk 0:00:52.3]}
39. Nc2 {[%clk 0:00:03.5]} 39... Ke7 {[%clk 0:00:51.3]} 40. Nd4 {[%clk 0:00:04]}
40... Rb4 {[%clk 0:00:50.5]} 0-1

[Event "*** Titled Tuesday Blitz"]
[Site "Chess.com"]
[Date "2020.05.12"]
[Round "7"]
[White "MarcoRiehle"]
[Black "stolencandy13"]
[Result "1-0"]
[WhiteElo "2625"]
[BlackElo "2519"]
[TimeControl "180+1"]
[EndTime "11:16:12 PDT"]
[Termination "MarcoRiehle won by resignation"]

1. e4 {[%clk 0:03:00.9]} 1... c6 {[%clk 0:02:58.3]} 2. c4 {[%clk 0:03:00.3]}
2... d5 {[%clk 0:02:57.9]} 3. cxd5 {[%clk 0:03:01.2]} 3... cxd5 {[%clk
0:02:56.2]} 4. exd5 {[%clk 0:03:02.1]} 4... Nf6 {[%clk 0:02:45.1]} 5. Nc3 {[%clk
0:03:02.7]} 5... Nxd5 {[%clk 0:02:41.6]} 6. Nf3 {[%clk 0:03:02.3]} 6... Nc6
{[%clk 0:02:39.5]} 7. Bb5 {[%clk 0:03:01.4]} 7... e6 {[%clk 0:02:36.4]} 8. O-O
{[%clk 0:03:00.5]} 8... Be7 {[%clk 0:02:34.7]} 9. Re1 {[%clk 0:03:00.9]} 9...
O-O {[%clk 0:02:31.9]} 10. d4 {[%clk 0:03:01.5]} 10... Qd6 {[%clk 0:02:22.5]}
11. a3 {[%clk 0:02:49]} 11... Rd8 {[%clk 0:02:19.5]} 12. Ne4 {[%clk 0:02:46.8]}
12... Qc7 {[%clk 0:02:16.9]} 13. Bg5 {[%clk 0:02:45.7]} 13... Bd7 {[%clk
0:02:10.7]} 14. Rc1 {[%clk 0:02:38.7]} 14... Qb6 {[%clk 0:02:08]} 15. Bd3 {[%clk
0:02:38.5]} 15... h6 {[%clk 0:01:56.7]} 16. Bxe7 {[%clk 0:02:36.4]} 16... Ncxe7
{[%clk 0:01:56]} 17. b4 {[%clk 0:02:32.6]} 17... Bb5 {[%clk 0:01:52.6]} 18. Bb1
{[%clk 0:02:28.3]} 18... Rac8 {[%clk 0:01:48.9]} 19. Nc5 {[%clk 0:02:28]} 19...
a5 {[%clk 0:01:35.7]} 20. bxa5 {[%clk 0:02:24.4]} 20... Qc7 {[%clk 0:01:27.6]}
21. Ne5 {[%clk 0:02:10.8]} 21... Bc6 {[%clk 0:01:16]} 22. Qh5 {[%clk 0:01:40.6]}
22... Be8 {[%clk 0:00:58.5]} 23. Qf3 {[%clk 0:01:25.7]} 23... Qxa5 {[%clk
0:00:42.2]} 24. Nxb7 {[%clk 0:01:19.7]} 24... Rxc1 {[%clk 0:00:37.7]} 25. Rxc1
{[%clk 0:01:20.6]} 25... Qa8 {[%clk 0:00:23.4]} 26. Nxd8 {[%clk 0:01:19.7]}
26... Qxd8 {[%clk 0:00:24.3]} 27. Qd3 {[%clk 0:01:16.2]} 27... Nf5 {[%clk
0:00:22.3]} 28. g3 {[%clk 0:00:51]} 28... Qg5 {[%clk 0:00:21.3]} 29. Rc8 {[%clk
0:00:49.7]} 29... Kf8 {[%clk 0:00:19.7]} 30. Qb5 {[%clk 0:00:46.1]} 30... Nd6
{[%clk 0:00:19.2]} 31. Qc5 {[%clk 0:00:44.6]} 31... Ke7 {[%clk 0:00:18.2]} 32.
Rxe8+ {[%clk 0:00:40]} 32... Kxe8 {[%clk 0:00:17.5]} 33. Qxd6 {[%clk 0:00:40.6]}
33... Qc1+ {[%clk 0:00:10.6]} 34. Kg2 {[%clk 0:00:40.9]} 34... Nf6 {[%clk
0:00:03.2]} 35. Bd3 {[%clk 0:00:36.2]} 35... Qxa3 {[%clk 0:00:02.6]} 36. Bb5+
{[%clk 0:00:35.7]} 1-0

[Event "*** Titled Tuesday Blitz"]
[Site "Chess.com"]
[Date "2020.05.12"]
[Round "7"]
[White "Anuar_Is"]
[Black "Vaathi_Coming"]
[Result "1-0"]
[WhiteElo "2815"]
[BlackElo "2863"]
[TimeControl "180+1"]
[EndTime "11:16:13 PDT"]
[Termination "Anuar_Is won by resignation"]

1. e4 {[%clk 0:03:00.9]} 1... c5 {[%clk 0:02:57.5]} 2. Nf3 {[%clk 0:03:01]} 2...
Nc6 {[%clk 0:02:56.4]} 3. d4 {[%clk 0:03:01.2]} 3... cxd4 {[%clk 0:02:55.4]} 4.
Nxd4 {[%clk 0:03:02.1]} 4... e6 {[%clk 0:02:55.5]} 5. Nc3 {[%clk 0:03:01.6]}
5... Nf6 {[%clk 0:02:55.7]} 6. Ndb5 {[%clk 0:02:59]} 6... d6 {[%clk 0:02:55.2]}
7. Bf4 {[%clk 0:02:58.8]} 7... e5 {[%clk 0:02:55.5]} 8. Bg5 {[%clk 0:02:59]}
8... a6 {[%clk 0:02:55.8]} 9. Na3 {[%clk 0:02:58.8]} 9... b5 {[%clk 0:02:54.3]}
10. Nd5 {[%clk 0:02:58.8]} 10... Be7 {[%clk 0:02:54.5]} 11. Bxf6 {[%clk
0:02:58.7]} 11... Bxf6 {[%clk 0:02:55.4]} 12. c4 {[%clk 0:02:58.9]} 12... b4
{[%clk 0:02:54.4]} 13. Nc2 {[%clk 0:02:58.7]} 13... O-O {[%clk 0:02:53.6]} 14.
g3 {[%clk 0:02:58.8]} 14... Bg5 {[%clk 0:02:49]} 15. Bg2 {[%clk 0:02:58.7]}
15... Rb8 {[%clk 0:02:45.4]} 16. b3 {[%clk 0:02:58.2]} 16... Be6 {[%clk
0:02:42.5]} 17. O-O {[%clk 0:02:57.2]} 17... a5 {[%clk 0:02:14.2]} 18. Kh1
{[%clk 0:02:52.3]} 18... Bh6 {[%clk 0:02:05.4]} 19. Qd3 {[%clk 0:02:51.9]} 19...
Ne7 {[%clk 0:02:04.8]} 20. Nce3 {[%clk 0:02:45.9]} 20... Bxe3 {[%clk 0:02:04.1]}
21. Nxe3 {[%clk 0:02:46.8]} 21... Qb6 {[%clk 0:02:03.3]} 22. Rad1 {[%clk
0:02:40]} 22... Rfd8 {[%clk 0:01:59.9]} 23. Rd2 {[%clk 0:02:33.2]} 23... Qc5
{[%clk 0:01:51.2]} 24. Nf5 {[%clk 0:02:29.8]} 24... Nc6 {[%clk 0:01:29.7]} 25.
Rfd1 {[%clk 0:02:15.1]} 25... Rd7 {[%clk 0:01:25.5]} 26. Qe2 {[%clk 0:02:06.5]}
26... Rbd8 {[%clk 0:01:24.4]} 27. h4 {[%clk 0:02:05.1]} 27... g6 {[%clk
0:01:20.8]} 28. Ne3 {[%clk 0:02:01.1]} 28... h5 {[%clk 0:01:20.9]} 29. Nd5
{[%clk 0:01:57.7]} 29... Ra7 {[%clk 0:01:07]} 30. Rf1 {[%clk 0:01:30.3]} 30...
Nd4 {[%clk 0:01:05.9]} 31. Qe3 {[%clk 0:01:30.4]} 31... a4 {[%clk 0:00:55.1]}
32. Nf6+ {[%clk 0:01:27.7]} 32... Kg7 {[%clk 0:00:49]} 33. Qg5 {[%clk
0:01:27.7]} 33... Rh8 {[%clk 0:00:48.9]} 34. f4 {[%clk 0:01:14.5]} 34... exf4
{[%clk 0:00:36.5]} 35. Qxf4 {[%clk 0:01:13.6]} 35... axb3 {[%clk 0:00:27.1]} 36.
axb3 {[%clk 0:01:07.2]} 36... Nxb3 {[%clk 0:00:16.2]} 37. Rxd6 {[%clk
0:01:05.4]} 37... Nd4 {[%clk 0:00:16.1]} 38. Nd5 {[%clk 0:01:04]} 38... Nc6
{[%clk 0:00:05.6]} 39. e5 {[%clk 0:01:00.6]} 39... Rf8 {[%clk 0:00:04.2]} 40.
Qf6+ {[%clk 0:00:59.6]} 40... Kg8 {[%clk 0:00:04.5]} 41. Rxc6 {[%clk 0:00:58.5]}
41... Qd4 {[%clk 0:00:04]} 42. Rxe6 {[%clk 0:00:56.9]} 1-0

[Event "*** Titled Tuesday Blitz"]
[Site "Chess.com"]
[Date "2020.05.12"]
[Round "7"]
[White "Ave_Mariia"]
[Black "zubridis"]
[Result "1-0"]
[WhiteElo "2276"]
[BlackElo "2458"]
[TimeControl "180+1"]
[EndTime "11:16:14 PDT"]
[Termination "Ave_Mariia won by resignation"]

1. c4 {[%clk 0:03:00.8]} 1... e5 {[%clk 0:02:55.1]} 2. Nc3 {[%clk 0:02:59.4]}
2... Bb4 {[%clk 0:02:53.1]} 3. Nd5 {[%clk 0:02:58.2]} 3... Bc5 {[%clk
0:02:51.7]} 4. b4 {[%clk 0:02:58.1]} 4... Bf8 {[%clk 0:02:50.5]} 5. Qb3 {[%clk
0:02:29.3]} 5... c6 {[%clk 0:02:46.6]} 6. Nc3 {[%clk 0:02:28.5]} 6... Nf6 {[%clk
0:02:44.2]} 7. Nf3 {[%clk 0:02:18.5]} 7... e4 {[%clk 0:02:42]} 8. Nd4 {[%clk
0:02:18.3]} 8... d5 {[%clk 0:02:40.6]} 9. e3 {[%clk 0:02:16.1]} 9... Be7 {[%clk
0:02:24.2]} 10. cxd5 {[%clk 0:02:13.6]} 10... cxd5 {[%clk 0:02:23.2]} 11. Bb5+
{[%clk 0:02:12.3]} 11... Kf8 {[%clk 0:02:17.3]} 12. O-O {[%clk 0:02:06.3]} 12...
h5 {[%clk 0:02:05.4]} 13. f3 {[%clk 0:02:04.4]} 13... exf3 {[%clk 0:01:50.5]}
14. Nxf3 {[%clk 0:02:04.5]} 14... Nc6 {[%clk 0:01:49.8]} 15. Bb2 {[%clk
0:01:52.6]} 15... Nxb4 {[%clk 0:01:31.5]} 16. Ng5 {[%clk 0:01:21.9]} 16... a6
{[%clk 0:01:26.6]} 17. Be2 {[%clk 0:01:19.8]} 17... Bg4 {[%clk 0:01:07.8]} 18.
e4 {[%clk 0:01:11.4]} 18... Bxe2 {[%clk 0:00:53.2]} 19. Nxe2 {[%clk 0:01:12.3]}
19... Kg8 {[%clk 0:00:19.1]} 20. e5 {[%clk 0:01:11.7]} 20... Ne4 {[%clk
0:00:15.6]} 21. Nxe4 {[%clk 0:01:05.9]} 21... dxe4 {[%clk 0:00:13]} 22. Qxf7+
{[%clk 0:01:05.6]} 22... Kh7 {[%clk 0:00:13.5]} 23. Qxh5+ {[%clk 0:01:00.9]}
23... Kg8 {[%clk 0:00:14]} 24. Qf7+ {[%clk 0:01:01]} 24... Kh7 {[%clk
0:00:14.1]} 25. Rf5 {[%clk 0:00:55.1]} 25... Bg5 {[%clk 0:00:11.2]} 26. Qh5+
{[%clk 0:00:51.5]} 26... Bh6 {[%clk 0:00:10.8]} 27. Raf1 {[%clk 0:00:23.6]}
27... Nd3 {[%clk 0:00:10.3]} 28. Rf6 {[%clk 0:00:20.4]} 28... Nxb2 {[%clk
0:00:09]} 29. Rxh6+ {[%clk 0:00:18.6]} 1-0